Cogmind - Beta 15 @@@ ROGUE MODE // 2025.10.15 @ 17:46:43 Player: MirenBlacksword Result: Destroyed by G-34 Mercenary with Small Laser Performance ------------- Evolutions (0) 0 Regions Visited (1) 200 Robots Destroyed (16) 80 Value Destroyed (189) 189 Prototype IDs (0) 0 Alien Tech Used (0) 0 Bonus (0) 0 TOTAL SCORE: 469 Bonus ------- None Cogmind --------- Core Integrity 0/250 Matter 300/300 Energy 100/100 System Corruption 0% Temperature Cool (6) Movement Walking (260) Ox2 Location -10/Materials Parts ------- > --- POWER (1) -------- (None) > --- PROPULSION (2) --- Aluminum Leg > --- UTILITY (2) ------ Large Storage Unit Seismic Detector > --- WEAPON (2) ------- (None) > --- INVENTORY (15) --- Aluminum Leg Flight Unit Flight Unit Flight Unit Flight Unit Large Storage Unit Terrain Scanner Improved Terrain Scanner Peak State ------------ > --- POWER ------------ Light Ion Engine > --- PROPULSION ------- Aluminum Leg Aluminum Leg > --- UTILITY ---------- Small Storage Unit Seismic Detector > --- WEAPON ----------- Small Laser Light Assault Rifle > --- INVENTORY -------- Light Ion Engine Light Treads Light Treads Wheel Wheel Improved Terrain Scanner Small Laser Mining Laser [Rating: 8] Favorites ----------- Power Light Ion Engine Engine Light Ion Engine Propulsion Aluminum Leg Leg Aluminum Leg Utility Seismic Detector Device Seismic Detector Storage Large Storage Unit Weapon Light Assault Rifle Energy Gun Small Laser Ballistic Gun Light Assault Rifle Special Weapon Mining Laser Build | -11 -10 ------- Run | Yrd Mat Slots Evolved . | . . Power . | . . Propulsion . | . . Utility . | . . Weapon . | . . Parts Attached 11 | 1 10 Power 1 | . 1 Engine 1 | . 1 Core . | . . Reactor . | . . Propulsion 4 | . 4 Treads . | . . Leg 4 | . 4 Wheel . | . . Hover . | . . Flight . | . . Utility 2 | 1 1 Device 1 | 1 . Storage 1 | . 1 Processor . | . . Hackware . | . . Protection . | . . Artifact . | . . Weapon 4 | . 4 Energy Gun 1 | . 1 Energy Cannon . | . . Ballistic Gun 2 | . 2 Ballistic Cannon . | . . Launcher . | . . Special Weapon 1 | . 1 Impact Weapon . | . . Slashing Weapon . | . . Piercing Weapon . | . . Special Melee Weapon . | . . Unidentified Prototypes . | . . Parts Lost 11 | . 11 Power 2 | . 2 Propulsion 5 | . 5 Utility . | . . Weapon 4 | . 4 Highest Loss Streak 8 | . 8 To Critical Strikes . | . . Average Backups 10 | 7 11 Power . | 1 . Propulsion 6 | 4 6 Utility 2 | . 2 Weapon 1 | 1 1 Tool/Special . | . . Unused Backups 26 | 9 17 Power 3 | 2 1 Propulsion 16 | 4 12 Utility 4 | 1 3 Weapon 3 | 2 1 Tool/Special . | . . Average Slot Usage (%) 90 | . 90 Engine 11 | . 11 Leg 27 | . 27 Device 14 | . 14 Storage 14 | . 14 Energy Gun 3 | . 3 Ballistic Gun 18 | . 18 Peak Build Rating 8 | 8 8 Average Rating 7 | 6 7 On Entrance 7 | 6 8 Naked Turns . | . . Heaviest Build 26 | 11 26 Greatest Support 20 | 20 20 Greatest Overweight (x) 2 | . 2 Average Overweight (x) . | . . Largest Inventory Capacity 15 | 8 15 Average Capacity 13 | 8 14 Most Carried 15 | 8 15 Average Carried 11 | 7 11 Final Capacity 15 | 8 15 Final Carried 8 | 8 8 Class Distribution -------------------- 100% | Mutant Dominant Class ---------------- Mutant | -10/Materials Resources | -11 -10 ----------- Run | Yrd Mat Matter Collected 340 | 228 112 Remotely . | . . Salvage Created 433 | 167 266 Parts 33 | 15 18 Haulers Intercepted . | . . Recyclers Shooed 1 | . 1 Parts Field Recycled . | . . Retrieved Matter . | . . Parts Self-Destructed . | . . Prevented . | . . Kills | -11 -10 ------- Run | Yrd Mat Combat Hostiles Destroyed 8 | . 8 Guns 7 | . 7 Cannons 1 | . 1 Classes Destroyed 5 | 2 3 Worker 1 | . 1 Tunneler 5 | 5 . Recycler 2 | 1 1 Swarmer 6 | . 6 Grunt 2 | . 2 Best Kill Streak 3 | 3 3 Combat Bots Only 3 | . 3 Max Kills in Single Turn 2 | 1 2 Gunslinging . | . . Exploded . | . . Melee . | . . Uniques/NPCs Destroyed . | . . Combat | -11 -10 -------- Run | Yrd Mat Hostile Shots Fired 129 | . 129 Missed 26 | . 26 Hits 103 | . 103 Projectile 103 | . 103 Critical Strikes 1 | . 1 Damage Taken 1138 | . 1138 Core 254 | . 254 Absorbed by Shields . | . . Core Remaining (%) 100 | 100 . Volleys Fired 68 | 18 50 Largest 2 | 2 2 Hottest 100 | 60 100 Shots Fired 125 | 36 89 Gun 123 | 36 87 Cannon . | . . Launcher . | . . Special 2 | . 2 Kinetic 92 | 18 74 Thermal 33 | 18 15 Explosive . | . . Electromagnetic . | . . Robot Hit Streak 8 | 8 8 Robot Miss Streak 5 | 3 5 Penetration Max . | . . Secondary Targets . | . . Shots Hit Robots 78 | 23 55 Core Hits 35 | 10 25 Critical Kills . | . . Critical Parts Destroyed . | . . Critical Strikes . | . . Melee Attacks . | . . Impact . | . . Slashing . | . . Piercing . | . . Sneak Attacks . | . . Combat Hostiles . | . . Follow-up Attacks . | . . Damage Inflicted 763 | 216 547 Guns 685 | 216 469 Cannons . | . . Explosions . | . . Melee . | . . Ramming 54 | . 54 Kinetic 451 | 76 375 Thermal 258 | 140 118 Explosive . | . . Electromagnetic . | . . Impact . | . . Slashing . | . . Piercing . | . . Highest Corruption . | . . Average Corruption . | . . Corruption Purged . | . . Corruption Blocked . | . . Overload Shots . | . . Overflow Damage . | . . Projectiles . | . . Explosions . | . . Melee . | . . Knockbacks 1 | . 1 Impact 1 | . 1 Kinetic . | . . Secondary . | . . Self-Inflicted Damage . | . . Shots . | . . Rammed 1 | . 1 Targets Rammed 42 | . 42 Kicked 41 | . 41 Crushed . | . . Highest Temperature 84 | 40 84 Average Temperature 22 | 18 25 Received Heat Transfer 567 | . 567 Siege Activations . | . . Martial Activations . | . . Shielding Activations . | . . Robots Disrupted . | . . Combat Hostiles . | . . Robots Corrupted . | . . Combat Hostiles . | . . Parts Fried . | . . Impact Corruptions . | . . Robots Melted . | . . Combat Hostiles . | . . Parts Melted . | . . Heat Transferred 600 | 325 275 Parts Sabotaged . | . . Parts Stolen . | . . Parts Stripped . | . . Power Chain Reactions . | . . Alert | -11 -10 ------- Run | Yrd Mat Maximum Alert Level . | . . Low Security (%) 100 | 100 100 Level 1 . | . . Level 2 . | . . Level 3 . | . . Level 4 . | . . Level 5 . | . . High Security . | . . Max Security . | . . Peak Influence 75 | 10 75 Initial . | . . Average 16 | 2 19 Influence Increases 260 | 30 230 Destroy 0b10 Robot/C 160 | . 160 Destroy 0b10 Robot/NC 40 | 30 10 Destroy Leader 40 | . 40 Successful Hack 5 | . 5 Lose Combat Pursuer 15 | . 15 Influence Decreases 260 | 30 230 Time Decay 188 | 30 158 Lost Part 72 | . 72 Squads Dispatched 1 | . 1 Investigation . | . . Extermination . | . . Reinforcement 1 | . 1 Assault . | . . Garrison . | . . Intercept . | . . Searches Triggered . | . . Construction Impeded . | . . Haulers Reinforced . | . . Active Scanning Responses . | . . Cargo Convoy Interrupts . | . . Stealth | -11 -10 --------- Run | Yrd Mat Distress Signals 1 | . 1 Communications Jammed . | . . Distress Signals . | . . Times Spotted 15 | . 15 Peak Tracking Total 5 | . 5 Tactical Retreats 1 | . 1 Traps | -11 -10 ------- Run | Yrd Mat Traps Triggered . | . . Indirectly . | . . Trap Hack Attempts . | . . Triggered . | . . Disarmed . | . . Reprogrammed . | . . Reused . | . . Traps Extracted . | . . Installed . | . . Triggered . | . . Machines | -11 -10 ---------- Run | Yrd Mat Machines Disabled . | . . Max in Single Turn . | . . Machines Repaired . | . . Machines Dismantled . | . . Machines Sabotaged . | . . Overloaded Fab Kills . | . . Hacking | -11 -10 --------- Run | Yrd Mat Machines Accessed 1 | . 1 Terminals 1 | . 1 Fabricators . | . . Repair Stations . | . . Recycling Units . | . . Scanalyzers . | . . Garrison Access . | . . Total Hacks 3 | . 3 Successful 1 | . 1 Failed 2 | . 2 Catastrophic . | . . Database Lockouts . | . . Manual 3 | . 3 Terminals 3 | . 3 Fabricators . | . . Repair Stations . | . . Recycling Units . | . . Scanalyzers . | . . Garrison Access . | . . Terminal Hacks . | . . Fabricator Hacks . | . . Repair Station Hacks . | . . Recycling Unit Hacks . | . . Scanalyzer . | . . Garrison Access Hacks . | . . Unauthorized Hacks 1 | . 1 Terminals 1 | . 1 Botnet 1 | . 1 Fabricators . | . . Repair Stations . | . . Recycling Units . | . . Scanalyzers . | . . Garrison Access . | . . Data Cores Recovered . | . . Used . | . . Hacking Detections 1 | . 1 Full Trace Events . | . . Feedback Events . | . . Feedback Blocked . | . . Robot Schematics Acquired . | . . Robots Built . | . . Authchips . | . . Time . | . . Total Robot Build Rating . | . . Part Schematics Acquired . | . . Parts Built . | . . Authchips . | . . Time . | . . Total Part Build Rating . | . . Parts Repaired . | . . Time . | . . Parts Recycled . | . . Recycled Matter . | . . Retrieved Matter . | . . Retrieved Components . | . . Parts Scanalyzed . | . . Part Schematics Acquired . | . . Parts Damaged . | . . Bothacking | -11 -10 ------------ Run | Yrd Mat Used RIF Installer . | . . Robots Hacked . | . . Non-combat . | . . Combat . | . . Robot Hacks Applied . | . . Relay Couplers Released . | . . Fabnet Peak Effective % . | . . Robots Rewired . | . . Allies Hacked . | . . Hacks Repelled . | . . Allies | -11 -10 -------- Run | Yrd Mat Total Allies . | . . Largest Group . | . . Highest-Rated Group . | . . Highest-Rated Ally . | . . Total Orders . | . . Ally Attacks . | . . Total Damage . | . . Kills . | . . Allies Corrupted . | . . Allies Melted . | . . Intel | -11 -10 ------- Run | Yrd Mat Active Infowar (turns) 596 | 24 572 Seismic 596 | 24 572 Robot Analysis Total . | . . Derelict Logs Recovered . | . . Drone Launches . | . . Drone Recoveries . | . . Exploration | -11 -10 ------------- Run | Yrd Mat Turns Passed 724 | 152 572 Spaces Moved 240 | 68 172 Core . | . . Treads . | . . Legs 240 | 68 172 Wheels . | . . Hover . | . . Flight . | . . Fastest Speed 120 | 120 120 Average Speed 168 | 120 187 Slowest Speed 260 | 120 260 Overloaded Moves . | . . Propulsion Burnouts . | . . Robots Hopped . | . . Potential Cave-ins . | . . Cave-ins Triggered . | . . Exploration Rate (%) 14 | 3 25 Regions Visited 1 Branch Regions . Pre-discovered Areas . | . . Known Exits Taken . | . . Unknown Exits Taken 1 | 1 . Scrap Searched . | . . Spaces Dug . | . . Terrain Destroyed . | . . Melee . | . . Projectile . | . . AOE . | . . Terrain Rammed . | . . Walls Destroyed . | . . Machines Disabled . | . . Actions | -11 -10 --------- Run | Yrd Mat Total 414 | 107 307 Wait 27 | 13 14 Move 239 | 67 172 Hop . | . . Pick Up 17 | 5 12 Fast Attach 1 | 1 . Attach 8 | . 8 Detach 1 | . 1 Swap 2 | . 2 Drop 9 | 3 6 Fire 68 | 18 50 Melee . | . . Ram 1 | . 1 Kick 41 | . 41 Crush . | . . Escape Stasis . | . . Rewire . | . . Trap . | . . Miscellaneous . | . . Route ------- -11/Scrapyard -10/Materials History --------- Turn | Location | Event 7 | -11/Scrapyard | Discovered new exit (range 2) 153 | -11/Scrapyard | Entered Materials 312 | -10/Materials | Build established: Mutant 638 | -10/Materials | Core integrity fell below 50% 674 | -10/Materials | Lost 8 parts (1p3n4w) 682 | -10/Materials | Core integrity fell below 20% 725 | -10/Materials | Destroyed by G-34 Mercenary with Small Laser Last Messages --------------- 00683_ Kicked G-34 Mercenary out of the way. 00689_ Kicked G-34 Mercenary. 00690_ Kicked G-34 Mercenary out of the way. 00694_ Kicked G-34 Mercenary. 00702_ Kicked G-34 Mercenary out of the way. 00706_ Kicked G-34 Mercenary. 00708_ Kicked G-34 Mercenary out of the way. 00709_ Kicked G-34 Mercenary. 00711_ Kicked G-34 Mercenary out of the way. 00713_ Aluminum Leg destroyed. 00716_ K-01 Serf collects debris. 00717_ Acquired 2 matter. 00717_ Aluminum Leg destroyed. 00719_ K-01 Serf collects debris. 00719_ Kicked G-34 Mercenary. 00723_ K-01 Serf collects debris. 00725_ Kicked G-34 Mercenary. Map ----- +----------------------------------------------------+ | ?????????????????????????????????????????????????? | | ?????????????????????????????????????????????????? | | ?????????????????????????????????????????????????? | | ?????????????????????????????????????????????????? | | ?????????????????????????????????????????????????? | | ?????????????????????????????????????????????????? | | ?????????????????????????????????????????????????? | | ?????????????????????????????????????????????????? | | ????????????????????###??????????????????????????? | | ???????????????????? ?????????????????????????? | | ??????????????????? ?????????????????????????? | | ??????????????????? ?????????????????????????? | | ???????????????????# #?????????????????????????? | | ??????????#????????# #?????????????????????????? | | ??????????# ???????# +?????????????????????????? | | ??????????# ???????# #?????????????????????????? | | ??????????# ???????# #?????????????????????????? | | ??????????# ???????# #?????????????????????????? | | ??????????# ???????# #?????????????????????????? | | ??????????#+######## #?????????????????????????? | | ??????????# # ##########????????????????? | | ??????????# """ # # %% #????????????????? | | ??????????# """ # # %%%%% #????????????????? | | ??????????# """ # %# k%%% #????????????????? | | ??????????# % + #%gm%% #????????????????? | | ??????????# """ # +%@!%% #????????????????? | | ??????????# """ # #o%%% #????????????????? | | ??????????# """ # # #????????????????? | | ??????????# ! # # #????????????????? | | ??????????########## # #????????????????? | | ???????????????????# #############?????????????? | | ?????????????????### ###?? ?????????????? | | ????############## ##? ???############ | | ????# = = # ## ???# | | ????# """ = = # ## """ "????# """"" | | ????# """ + T #? """ "????# """"""""" | | ????# """ # #?? """ ?????# """ """ | | ????# # #??? ?????# | | ????############## #???##+#############+#### | | ??????????????#######+######## %% | | ??????????????# *% + *[ | | ??????????????# """ """ !! # | | ??????????????# """"""""" ##################### | | ??????????????# """"" #???????????????????? | | ??????????????# #???????????????????? | | ??????????????# #???????????????????? | | ??????????????################???????????????????? | | | | | | | +----------------------------------------------------+ Best States ------------- Heat Dissipation 25 Energy Generation 10 Energy Capacity 125 Matter Stores 300 Matter Capacity 300 Sight Range 16 Terrain Scan Density 10 Evasion (%) 55 Item Schematics ----------------- None Robot Schematics ------------------ None Fabricated ------------ Nothing Repaired ---------- Nothing Alien Tech Used ----------------- None Achievements -------------- None Challenges ------------ None Game ------ Seed WaveBottomlessInterrupter Manual? 0 Play Time 00:09:40 Cumulative 25.7 hours Start 2025.10.15 @ 17:27:57 End 2025.10.15 @ 17:46:43 Sessions 1 Manual Loads 0 Difficulty Rogue Special Mode None Game No. 22 Rogue 17 Adventurer 5 Explorer 0 Win Type - Total 1 Types 1/0/0/0/0/0/0/0/0/0 Lore% 24 Gallery% 21 Achievement% 27 Wizard Run 0 Options --------- Layout 1 ASCII 0 Keyboard 1 Movement Arrows Keybinds 0 Fullscreen 1 Font 24/Smallcaps Map View 50x35 Zoom Use 0% Tactical HUD 1 Map Filters NONE Filters NONE Steam 1 RUN: e418db8c-715b-49bb-adae-6aa3aa427538